[Event "Italian-ch Semifinal 2022"]
[Site "Acqui Terme"]
[Date "2022.06.18"]
[Round "8.10"]
[White "Pisacane, Pietro"]
[Black "Franciosi, Fausto"]
[Result "1-0"]
[ECO "E94"]
[WhiteElo "2138"]
[BlackElo "2204"]
[Annotator "TA"]
[PlyCount "79"]
[EventDate "2022.06.15"]
[EventType "swiss"]
[EventCountry "ITA"]
[SourceTitle "playchess.com"]
[Source "ChessBase"]
[SourceQuality "1"]
[TimeControl "40/5400+30:1800+30"]

{[%evp 20,79,44,44,68,48,46,39,36,24,51,37,36,27,53,47,70,35,43,39,67,28,58,31,32,-28,0,0,0,0,130,66,71,0,0,0,0,-26,0,0,0,7,23,43,106,107,122,47,371,367,341,352,326,335,619,520,508,492,502,492,492,482]} 1. d4 {[%emt 0:03:41]} Nf6 {[%emt 0:00:29]} 2. c4 {[%emt 0:01:50]} g6 {[%emt 0:00:21]} 3. Nc3 {[%emt 0:00:04]} Bg7 {[%emt 0:00:11]} 4. e4 {[%emt 0:00:04]} d6 {[%emt 0:00:06]} 5. Nf3 {[%emt 0:00:09]} O-O {[%emt 0:00:17]} 6. Be2 {[%emt 0:00:04]} e5 {[%emt 0:01:41]} 7. O-O {[%emt 0:00:17]} Nbd7 {[%emt 0:01:47]} 8. Be3 {[%emt 0:10:30]} Ng4 {[%emt 0:07:02]} 9. Bg5 {[%emt 0:00:06]} f6 {[%emt 0:00:31]} 10. Bh4 {[%emt 0:03:59]} g5 {[%emt 0:01:14]} 11. Bg3 {[%emt 0:00:50]} Nh6 $1 {[%emt 0:02:58] E94: King's Indian: Classical: 6 Be2 e5 7 0-0: Various Black 7th moves.} 12. dxe5 {[%emt 0:12:00]} (12. Qd2 {keeps more tension.} g4 13. Nh4 exd4 14. Qxd4 f5 15. Qd5+) 12... dxe5 {[%emt 0:05:53] [#]} 13. Qc2 $146 {[%emt 0:10:45]} ({Predecessor:} 13. b4 Kh8 14. c5 a5 15. Qa4 c6 16. Rac1 Qe7 17. Nd2 f5 18. exf5 Nxf5 19. Nce4 {½-½ (90) Loiseau,Q (2406)-Le Corre,B (2300) Haguenau 2013}) 13... Nc5 {[%emt 0:19:40] White is slightly better.} 14. Rfd1 {[%emt 0:04:03]} Qe8 {[%emt 0:05:31]} 15. Nd5 {[%emt 0:11:10]} Ne6 {[%emt 0:04:42]} 16. c5 {[%emt 0:07:38]} Kh8 {[%emt 0:21:41]} 17. h3 {[%emt 0:03:52]} Ng8 {[%emt 0:05:13]} 18. Rac1 {[%emt 0:04:50] 0x0.00176352c87cdp-1022s more active pieces.} Ne7 {[%emt 0:01:28]} 19. b4 {[%emt 0:01:43][%cal Bb2b4,Bb4b5][%mdl 32]} h5 {[%emt 0:04:36]} 20. b5 {[%emt 0:02:54]} c6 {[%emt 0:05:24]} 21. Nxe7 {[%emt 0:02:09]} Qxe7 {[%emt 0:00:02]} 22. a4 {[%emt 0:04:45]} (22. bxc6 $1 $14 bxc6 23. Rd6) 22... Re8 {[%emt 0:01:39]} 23. bxc6 {[%emt 0:02:54]} bxc6 {[%emt 0:00:02]} 24. Rd6 {[%emt 0:02:28]} Kh7 {[%emt 0:04:17]} (24... h4 $11 25. Bh2 Bf8) 25. Rcd1 {[%emt 0:02:13]} (25. Rxc6 $6 g4 26. hxg4 hxg4 27. Rxe6 Bxe6 $15) (25. Bc4 $16) 25... Bf8 $14 {[%emt 0:01:12]} 26. Bxe5 {[%emt 0:04:47]} fxe5 $11 {[%emt 0:00:41]} 27. Nxe5 {[%emt 0:00:41][%cal Od6d7]} Qg7 {[%emt 0:01:42][%csl LRd6,LRe5] Prevents Rd7.} (27... Nxc5 $2 28. Ng6 Qxd6 29. Rxd6 Bxd6 30. e5 $18) 28. Nxc6 {[%emt 0:01:18] [#] Threatens to win with e5+.} Bxd6 {[%emt 0:00:54]} 29. e5+ {[%emt 0:01:14]} Kh8 $1 {[%emt 0:00:18]} 30. exd6 {[%emt 0:01:00]} Bd7 {[%emt 0:00:47]} 31. Ne7 {[%emt 0:00:41] Strongly threatening c6.} Rxe7 {[%emt 0:02:30]} (31... Rac8 $1 $14 32. c6 (32. Nxc8 Rxc8 33. Bb5 Rxc5 $11) 32... Rxe7 33. dxe7 Be8) 32. dxe7 $16 {[%emt 0:00:01]} Qxe7 {[%emt 0:00:01]} 33. Qg6 {[%emt 0:01:28]} (33. Qc3+ $16 Ng7 34. c6) 33... Nxc5 $2 {[%emt 0:01:35][%mdl 8192] Loses the game.} (33... Nf8 $14 34. Qh6+ (34. Qxh5+ Nh7 $14) 34... Nh7) 34. Qh6+ $18 {[%emt 0:00:28]} Qh7 {[%emt 0:00:23]} (34... Kg8 $2 {[#]} 35. Rxd7 $1 {[%mdl 512]} Qxd7 36. Bc4+ Ne6 37. Bxe6+ Qxe6 38. Qxe6+ $18) 35. Qxg5 {[%emt 0:00:06]} Rc8 {[%emt 0:00:35]} 36. Rd6 {[%emt 0:00:19]} Be6 $2 {[%emt 0:00:28]} (36... Ne4 $2 37. Qe5+ Kg8 38. Qd5+ Qf7 39. Rg6+ Kf8 40. Qxe4 $18) (36... Ne6 37. Qf6+ (37. Qxh5 Rc1+ 38. Kh2 Qxh5 $15) 37... Kg8) 37. Rd8+ {[%emt 0:00:56] White is clearly winning.} Rxd8 {[%emt 0:00:23]} 38. Qxd8+ {[%emt 0:00:01]} Bg8 {[%emt 0:00:40]} 39. Qd4+ {[%emt 0:00:32]} Qg7 {[%emt 0:00:04]} 40. Qxc5 {[%emt 0:00:00] Weighted Error Value: White=0.19 (very precise) /Black=0.48} 1-0